bitfinex/quotes_BTCUSD_20250723
["timestamp","ask_amount","ask_price","bid_price","bid_amount"]
[1753299681922,0.37379761,118470.0,118460.0,0.60357952]
[1753299682093,0.38223806,118470.0,118460.0,0.61202068]
[1753299682502,0.37379761,118470.0,118460.0,0.61202068]
[1753299683299,0.3653573,118470.0,118460.0,0.61202068]
[1753299684294,0.37379761,118470.0,118460.0,0.61202068]
[1753299684693,0.3653573,118470.0,118460.0,0.61202068]
[1753299685167,0.2344773,118470.0,118460.0,0.61202068]
[1753299685380,0.3653573,118470.0,118460.0,0.61202068]
[1753299687303,0.32531943,118480.0,118460.0,0.61202068]
[1753299687304,0.15,118480.0,118470.0,0.19414111]
[1753299687464,0.3737969,118480.0,118470.0,0.59322175]
[1753299687662,0.3653573,118480.0,118470.0,0.59322175]
[1753299687863,0.0844773,118480.0,118470.0,0.59322175]
[1753299688117,0.2153173,118480.0,118470.0,0.59322175]
[1753299688319,0.22375697,118480.0,118470.0,0.59322175]
[1753299688494,0.22375697,118480.0,118470.0,0.5847813]
[1753299688694,0.22375697,118480.0,118470.0,0.59322175]
[1753299689095,0.23319671,118480.0,118470.0,0.59322175]
[1753299689491,0.24907654,118480.0,118470.0,0.55388137]
[1753299689691,0.30845216,118480.0,118470.0,0.53699975]
[1753299689895,0.47942759,118480.0,118470.0,0.5454407]
[1753299690096,0.47942759,118480.0,118470.0,0.5422807]
[1753299690306,0.47942759,118480.0,118470.0,0.53383975]
[1753299690509,0.31062273,118480.0,118470.0,0.53383975]
[1753299690702,0.30218249,118480.0,118470.0,0.54228063]
[1753299690943,0.31062266,118480.0,118470.0,0.53383975]
[1753299691174,0.31062266,118480.0,118470.0,0.54228063]
[1753299691416,0.31162266,118480.0,118470.0,0.5422807]
[1753299691790,0.47942752,118480.0,118470.0,0.53383975]
[1753299692241,0.47098778,118480.0,118470.0,0.53383975]
[1753299692447,0.4200524,118480.0,118470.0,0.53383975]
[1753299692658,0.40317257,118480.0,118470.0,0.53184975]
[1753299692865,0.43805257,118480.0,118470.0,0.53184975]
[1753299693080,0.58805257,118480.0,118470.0,0.53184975]
[1753299694474,0.58507257,118480.0,118470.0,0.5402907]
[1753299694922,0.39202725,118480.0,118470.0,0.54873158]
[1753299695158,0.40046735,118480.0,118470.0,0.54873158]
[1753299695374,0.37592704,118480.0,118470.0,0.55927232]
[1753299695602,0.39280687,118480.0,118470.0,0.56235232]
[1753299695821,0.2153173,118480.0,118470.0,1.04877087]
[1753299696288,0.2153173,118480.0,118470.0,0.68574023]
[1753299696752,0.2153173,118480.0,118470.0,0.61093344]
[1753299698039,0.2237569,118480.0,118470.0,0.61093344]
[1753299698538,0.24063666,118480.0,118470.0,0.57079299]
[1753299698770,0.23219671,118480.0,118470.0,0.57923351]
[1753299698975,0.24063666,118480.0,118470.0,0.55391158]
[1753299699185,0.24907676,118480.0,118470.0,0.54547056]
[1753299699394,0.2237569,118480.0,118470.0,0.5623516]
[1753299699601,0.2237569,118480.0,118470.0,0.5941516]
[1753299700256,0.23219664,118480.0,118470.0,0.5941516]
[1753299700467,0.2237569,118480.0,118470.0,0.5941516]
[1753299700685,0.23219664,118480.0,118470.0,0.5941516]
[1753299700928,0.24907647,118480.0,118470.0,0.57727056]
[1753299701121,0.24063645,118480.0,118470.0,0.59415182]
[1753299701349,0.23219664,118480.0,118470.0,0.60259227]
[1753299701580,0.2237569,118480.0,118470.0,0.60259227]
[1753299702238,0.2153173,118480.0,118470.0,0.60259227]
[1753299702474,0.22375697,118480.0,118470.0,0.60259227]
[1753299702915,0.2153173,118480.0,118470.0,0.60259227]
[1753299703130,0.22375697,118480.0,118470.0,0.60259227]
[1753299703344,0.2153173,118480.0,118470.0,0.60259227]
[1753299703559,0.22375697,118480.0,118470.0,0.60259227]
[1753299703772,0.2153173,118480.0,118470.0,0.60259227]
[1753299704196,0.22375697,118480.0,118470.0,0.60259227]
[1753299704671,0.2642027,118480.0,118470.0,0.20579911]
[1753299704902,0.45196782,118480.0,118470.0,0.53184975]
[1753299705147,0.47916815,118480.0,118470.0,0.53184975]
[1753299705340,0.59392223,118480.0,118470.0,0.53184975]
[1753299705595,0.39271673,118480.0,118470.0,0.55083158]
[1753299705816,0.3758369,118480.0,118470.0,0.56235232]
[1753299706032,0.38215657,118480.0,118470.0,0.57079291]
[1753299706236,0.39059638,118480.0,118470.0,0.57079291]
[1753299706362,0.39059638,118480.0,118470.0,0.57079248]
[1753299706618,0.39903626,118480.0,118470.0,0.1993214]
[1753299706833,0.39903626,118480.0,118470.0,0.18243999]
[1753299707034,0.57628164,118480.0,118470.0,0.17399911]
[1753299707239,0.40747728,118480.0,118470.0,0.54547063]
[1753299707457,0.39903711,118480.0,118470.0,0.55391144]
[1753299707893,0.40747735,118480.0,118470.0,0.53702975]
[1753299708098,0.40747735,118480.0,118470.0,0.5454707]
[1753299708672,0.40747735,118480.0,118470.0,0.55391158]
[1753299708856,0.40747735,118480.0,118470.0,0.5454707]
[1753299709100,0.40747735,118480.0,118470.0,0.55391158]
[1753299709299,0.39903711,118480.0,118470.0,0.55391158]
[1753299709729,0.57628221,118480.0,118470.0,0.53702975]
[1753299709951,0.6643098,118480.0,118470.0,0.53184975]
[1753299710833,0.5866825,118480.0,118470.0,0.53184975]
[1753299711650,0.5834425,118480.0,118470.0,0.53184975]
[1753299715630,0.39933764,118480.0,118470.0,0.54029063]
[1753299715844,0.38423685,118480.0,118470.0,0.54239056]
[1753299716064,0.39059687,118480.0,118470.0,0.53702975]
[1753299716276,0.39903704,118480.0,118470.0,0.53702975]
[1753299716509,0.40111704,118480.0,118470.0,0.5454707]
[1753299716707,0.40111704,118480.0,118470.0,0.55391158]
[1753299717137,0.40111704,118480.0,118470.0,0.53702975]
[1753299717367,0.5699219,118480.0,118470.0,0.5454707]
[1753299717569,0.5699219,118480.0,118470.0,0.53702975]
[1753299717785,0.54460233,118480.0,118470.0,0.17091911]
[1753299718035,0.02532157,118470.0,118460.0,0.18035495]
[1753299718252,0.10979851,118470.0,118460.0,0.19933764]
[1753299718468,0.11823925,118470.0,118460.0,0.19933785]
[1753299718681,0.11823925,118470.0,118460.0,0.20777916]
[1753299718682,0.11823918,118470.0,118460.0,0.20777916]
[1753299718896,0.10135799,118470.0,118460.0,0.20777901]
[1753299719131,0.10135799,118470.0,118460.0,0.57080965]
[1753299719350,0.10135799,118470.0,118460.0,0.57180965]
[1753299719560,0.10135799,118470.0,118460.0,0.57280965]
[1753299719768,0.10979851,118470.0,118460.0,0.56436849]
[1753299719997,0.18944473,118470.0,118460.0,0.18137502]
[1753299720291,0.32940051,118470.0,118460.0,0.535964]
[1753299720523,0.25343841,118470.0,118460.0,0.55284725]
[1753299720735,0.26187908,118470.0,118460.0,0.55284725]
[1753299720951,0.43069848,118470.0,118460.0,0.535964]
[1753299721246,0.46720624,118470.0,118460.0,0.533864]
[1753299721504,0.46720624,118470.0,118460.0,0.531864]
[1753299721782,0.46396624,118470.0,118460.0,0.531864]
[1753299722201,0.2603667,118470.0,118460.0,0.56236849]
[1753299722426,0.2344773,118470.0,118460.0,0.67627418]
[1753299722857,0.2152373,118470.0,118460.0,0.67627418]
[1753299723489,0.2152373,118470.0,118460.0,0.60230965]
[1753299724673,0.22367768,118470.0,118460.0,0.60230965]
[1753299724876,0.2152373,118470.0,118460.0,0.60230965]
[1753299729314,0.2152373,118470.0,118460.0,0.60082173]
[1753299730967,0.22367761,118470.0,118460.0,0.60082173]
[1753299731153,0.2152373,118470.0,118460.0,0.60082173]
[1753299731368,0.15,118480.0,118470.0,0.21840066]
[1753299731555,0.29763948,118480.0,118470.0,0.5865613]
[1753299731751,0.30607943,118480.0,118470.0,0.59500204]
[1753299731977,0.30607943,118480.0,118470.0,0.57860204]
[1753299732232,0.60175169,118480.0,118470.0,0.17394911]
[1753299732443,0.51032207,118480.0,118470.0,0.53389975]
[1753299732696,0.51032207,118480.0,118470.0,0.55078158]
[1753299732909,0.47942207,118480.0,118470.0,0.55922239]
[1753299733154,0.48886231,118480.0,118470.0,0.5454207]
[1753299733590,0.48042207,118480.0,118470.0,0.55386151]
[1753299733796,0.40304683,118480.0,118470.0,0.55386151]
[1753299734151,0.38616678,118480.0,118470.0,0.5623021]
[1753299734334,0.38411678,118480.0,118470.0,0.57074262]
[1753299734531,0.38411671,118480.0,118470.0,0.57918307]
[1753299734716,0.3756769,118480.0,118470.0,0.57918307]
[1753299734930,0.38411671,118480.0,118470.0,0.57074262]
[1753299735138,0.38411671,118480.0,118470.0,0.5623021]
[1753299735569,0.4009969,118480.0,118470.0,0.5454207]
[1753299736001,0.56980176,118480.0,118470.0,0.53697975]
[1753299736838,0.4009969,118480.0,118470.0,0.55386158]
[1753299737118,0.4009969,118480.0,118470.0,0.5454207]
[1753299737315,0.4030469,118480.0,118470.0,0.55386158]
[1753299738160,0.4030469,118480.0,118470.0,0.5454207]
[1753299738995,0.38616671,118480.0,118470.0,0.55386151]
[1753299739195,0.39255666,118480.0,118470.0,0.56230218]
[1753299739608,0.39255666,118480.0,118470.0,0.56230225]
[1753299740022,0.39255666,118480.0,118470.0,0.57074292]
[1753299740254,0.39255666,118480.0,118470.0,0.56230225]
[1753299740455,0.40099676,118480.0,118470.0,0.55386151]
[1753299740620,0.63234194,118480.0,118470.0,0.53697975]
[1753299740859,0.63234194,118480.0,118470.0,0.5454207]
[1753299740860,0.62390213,118480.0,118470.0,0.5454207]
[1753299741074,0.61546218,118480.0,118470.0,0.53184975]
[1753299741286,0.64696218,118480.0,118470.0,0.53184975]
[1753299742490,0.65017218,118480.0,118470.0,0.53184975]
[1753299742736,0.64173208,118480.0,118470.0,0.53184975]
[1753299742922,0.63852208,118480.0,118470.0,0.53184975]
[1753299744000,0.78852208,118480.0,118470.0,0.53184975]
[1753299745954,0.56766742,118480.0,118470.0,0.5402907]
[1753299746230,0.73647228,118480.0,118470.0,0.53184975]
[1753299746459,0.53616742,118480.0,118470.0,0.5402907]
[1753299746669,0.53616742,118480.0,118470.0,0.55078158]
[1753299746882,0.53616742,118480.0,118470.0,0.5423407]
[1753299747096,0.53616742,118480.0,118470.0,0.5454207]
[1753299748280,0.77189637,118480.0,118470.0,0.53389975]
[1753299748512,0.60309151,118480.0,118470.0,0.55078144]
[1753299748721,0.53616699,118480.0,118470.0,0.56230211]
[1753299748933,0.3864773,118480.0,118470.0,0.57074263]
[1753299749152,0.5255969,118480.0,118470.0,0.61088308]
[1753299749376,0.53403664,118480.0,118470.0,0.61088308]
[1753299749596,0.53403664,118480.0,118470.0,0.59400211]
[1753299749809,0.53403664,118480.0,118470.0,0.57820211]
[1753299750016,0.55091647,118480.0,118470.0,0.57820218]
[1753299750231,0.55091647,118480.0,118470.0,0.55386144]
[1753299750657,0.55091647,118480.0,118470.0,0.56230218]
[1753299751107,0.55091647,118480.0,118470.0,0.54542063]
[1753299751336,0.7197219,118480.0,118470.0,0.5454207]
[1753299751765,0.72816214,118480.0,118470.0,0.5454207]
[1753299751955,0.55935728,118480.0,118470.0,0.5454207]
[1753299752174,0.55935728,118480.0,118470.0,0.55386158]
[1753299752530,0.55091704,118480.0,118470.0,0.5454207]
[1753299752532,0.73254361,118480.0,118470.0,0.53697975]
[1753299753381,0.7241038,118480.0,118470.0,0.53697975]
[1753299754452,0.7241038,118480.0,118470.0,0.5454207]
[1753299754660,0.7241038,118480.0,118470.0,0.53653575]
[1753299756294,0.7241038,118480.0,118470.0,0.5449767]
[1753299756505,0.7241038,118480.0,118470.0,0.53653575]
[1753299757089,0.7241038,118480.0,118470.0,0.53345575]
[1753299757307,0.19415749,118460.0,118450.0,0.16883497]
[1753299757553,0.2171773,118460.0,118450.0,0.54030791]
[1753299757766,0.24250101,118460.0,118450.0,0.54030799]
[1753299757993,0.24250101,118460.0,118450.0,0.54245799]
[1753299758228,0.56133501,118460.0,118450.0,0.53186561]
[1753299758448,0.58599377,118460.0,118450.0,0.53187825]
[1753299758675,0.63378334,118460.0,118450.0,0.53336953]
[1753299759112,0.63378334,118460.0,118450.0,0.53436953]
[1753299759326,0.43184956,118460.0,118450.0,0.54281191]
[1753299759541,0.44029115,118460.0,118450.0,0.55125421]
[1753299759760,0.38405956,118460.0,118450.0,0.55869637]
[1753299759952,0.39250094,118460.0,118450.0,0.57222846]
[1753299760168,0.39250087,118460.0,118450.0,0.58067048]
[1753299760375,0.39044087,118460.0,118450.0,0.58067048]
[1753299760705,0.38199956,118460.0,118450.0,0.58066998]
[1753299760923,0.39044094,118460.0,118450.0,0.56378608]
[1753299761562,0.39044094,118460.0,118450.0,0.56378601]
[1753299761741,0.45084303,118460.0,118450.0,0.55534399]
[1753299762123,0.45084303,118460.0,118450.0,0.55434399]
[1753299762758,0.45928462,118460.0,118450.0,0.54590183]
[1753299763176,0.46134462,118460.0,118450.0,0.55434406]
[1753299763376,0.45290303,118460.0,118450.0,0.56278622]
[1753299763587,0.46978621,118460.0,118450.0,0.53745953]
[1753299763846,0.62173731,118460.0,118450.0,0.36352192]
[1753299764066,0.81476495,118460.0,118450.0,0.36352192]
[1753299764271,0.96476495,118460.0,118450.0,0.53236953]
[1753299764686,0.96476495,118460.0,118450.0,0.36352192]
[1753299765357,0.96476495,118460.0,118450.0,0.53236953]
[1753299765599,0.83090495,118460.0,118450.0,0.53236953]
[1753299765771,0.90114286,118460.0,118450.0,0.53236953]
[1753299766773,0.59322763,118460.0,118450.0,0.54081191]
[1753299766944,0.70995024,118460.0,118450.0,0.55434421]
[1753299767166,0.40995024,118460.0,118450.0,0.55434421]
[1753299767327,0.40995024,118460.0,118450.0,0.56278644]
[1753299767531,0.40995024,118460.0,118450.0,0.55434421]
[1753299767830,0.5787836,118460.0,118450.0,0.53745953]
[1753299769740,0.6632609,118460.0,118450.0,0.53745953]
[1753299771215,0.4183919,118460.0,118450.0,0.54590183]
[1753299771468,0.4183919,118460.0,118450.0,0.54590191]
[1753299771686,0.58722526,118460.0,118450.0,0.53745953]
[1753299772032,0.57878417,118460.0,118450.0,0.53745953]
[1753299772233,0.60054286,118460.0,118450.0,0.53236953]
[1753299772477,0.68502016,118460.0,118450.0,0.53236953]
[1753299773368,0.60054286,118460.0,118450.0,0.53236953]
[1753299773599,0.57034286,118460.0,118450.0,0.53451953]
[1753299775178,0.60264286,118460.0,118450.0,0.53236953]
[1753299776308,0.59420134,118460.0,118450.0,0.53236953]
[1753299776699,0.59420134,118460.0,118450.0,0.16933889]
[1753299776840,0.59420134,118460.0,118450.0,0.53236953]
[1753299778107,0.67867864,118460.0,118450.0,0.53236953]
[1753299780311,0.64637864,118460.0,118450.0,0.53236953]
[1753299780718,0.67747864,118460.0,118450.0,0.53236953]
[1753299781746,0.39306756,118460.0,118450.0,0.54296183]
[1753299781965,0.40789003,118460.0,118450.0,0.54590183]
[1753299782183,0.37351832,118460.0,118450.0,0.58694392]
[1753299782400,0.37351832,118460.0,118450.0,0.5953858]
[1753299782620,0.38195941,118460.0,118450.0,0.5953858]
[1753299782902,0.39884195,118460.0,118450.0,0.57850183]
[1753299783149,0.39884195,118460.0,118450.0,0.60382817]
[1753299783394,0.39040057,118460.0,118450.0,0.61227012]
[1753299783611,0.39040057,118460.0,118450.0,0.6122697]
[1753299783822,0.39884181,118460.0,118450.0,0.60382782]
[1753299784039,0.40728319,118460.0,118450.0,0.59538587]
[1753299784216,0.40728319,118460.0,118450.0,0.58694385]
[1753299785271,0.40728369,118460.0,118450.0,0.57850176]
[1753299785474,0.3988426,118460.0,118450.0,0.56230183]
[1753299785646,0.39040108,118460.0,118450.0,0.55434406]
[1753299785856,0.39884253,118460.0,118450.0,0.56278622]
[1753299786056,0.40728412,118460.0,118450.0,0.55434406]
[1753299786258,0.39884253,118460.0,118450.0,0.56278622]
[1753299786661,0.39884253,118460.0,118450.0,0.55434406]
[1753299786875,0.40728412,118460.0,118450.0,0.55434406]
[1753299787071,0.40728412,118460.0,118450.0,0.54590183]
[1753299787286,0.40728412,118460.0,118450.0,0.55434406]
[1753299787676,0.39884253,118460.0,118450.0,0.55434406]
[1753299788021,0.39884253,118460.0,118450.0,0.56278622]
[1753299788228,0.40728419,118460.0,118450.0,0.54590183]
[1753299788653,0.39884253,118460.0,118450.0,0.54590183]
[1753299788831,0.40728405,118460.0,118450.0,0.54590183]
[1753299788983,0.40728455,118460.0,118450.0,0.54590183]
[1753299789181,0.57611791,118460.0,118450.0,0.53745953]
[1753299789392,0.39040165,118460.0,118450.0,0.54590183]
[1753299789924,0.5676766,118460.0,118450.0,0.54590191]
[1753299790547,0.5676766,118460.0,118450.0,0.55434421]
[1753299790795,0.4403564,118460.0,118450.0,0.13396454]
[1753299791000,0.17728984,118450.0,118440.0,0.53189251]
[1753299791209,0.17728984,118450.0,118440.0,0.16891087]
[1753299791210,0.41391714,118450.0,118440.0,0.16891087]
[1753299791416,0.0844773,118450.0,118440.0,0.94999365]
[1753299791617,0.2165173,118450.0,118440.0,1.37032781]
[1753299791831,0.13204,118450.0,118440.0,1.37032781]
[1753299792035,0.16688112,118470.0,118460.0,0.18571647]
[1753299792240,0.16688104,118470.0,118460.0,0.57446842]
[1753299792455,0.28216,118470.0,118460.0,0.59900958]
[1753299792662,0.28216,118470.0,118460.0,0.96511022]
[1753299792663,0.0844773,118470.0,118460.0,0.96511022]
[1753299792877,0.36138177,118500.0,118490.0,0.1856693]
[1753299793081,0.38369724,118500.0,118490.0,0.56228897]
[1753299793335,0.3666773,118500.0,118490.0,0.56228897]
[1753299793554,0.3666773,118500.0,118490.0,0.59378897]
[1753299793775,0.2166773,118500.0,118490.0,0.59378897]
[1753299794249,0.13277125,118500.0,118490.0,0.59378897]
[1753299794472,0.13377125,118500.0,118490.0,0.72606897]
[1753299794700,0.53377125,118500.0,118490.0,0.72606897]
[1753299795144,0.00149125,118500.0,118490.0,0.72606897]
[1753299795630,0.00149125,118500.0,118490.0,0.72706897]
[1753299795848,0.40049125,118500.0,118490.0,0.72706897]
[1753299796104,0.40049125,118500.0,118490.0,0.72806897]
[1753299801621,0.40049125,118500.0,118490.0,0.36503833]
[1753299801820,0.40049125,118500.0,118490.0,0.72806897]
[1753299802654,0.43488465,118500.0,118490.0,0.36503833]
[1753299803068,0.43488465,118500.0,118490.0,0.72806897]
[1753299803456,0.40049125,118500.0,118490.0,0.72806897]
[1753299803657,0.40049125,118500.0,118490.0,0.59578911]
[1753299803875,0.40049125,118500.0,118490.0,0.60422814]
[1753299805531,0.40049125,118500.0,118490.0,0.2411975]
[1753299805749,0.40049125,118500.0,118490.0,0.60422814]
[1753299808633,0.40049125,118500.0,118490.0,0.73734814]
[1753299812895,0.40049125,118500.0,118490.0,0.72134814]
[1753299813173,0.40049125,118500.0,118490.0,0.73654814]
[1753299818489,0.40049125,118500.0,118490.0,0.72134814]
[1753299818919,0.40049125,118500.0,118490.0,0.73684814]
[1753299820021,0.45382838,118500.0,118490.0,0.73684814]
[1753299820236,0.45382838,118500.0,118490.0,0.72134814]
[1753299820460,0.46440662,118500.0,118490.0,0.70584814]
[1753299820685,0.72391861,118500.0,118490.0,0.53382125]
[1753299820971,0.54670435,118500.0,118490.0,0.53382125]
[1753299821188,0.55514309,118500.0,118490.0,0.5422607]
[1753299821619,0.52982687,118500.0,118490.0,0.5422607]
[1753299821819,0.52982687,118500.0,118490.0,0.55813925]
[1753299822040,0.52684672,118500.0,118490.0,0.55813925]
[1753299822248,0.62771421,118500.0,118490.0,0.56657835]
[1753299822463,0.62771421,118500.0,118490.0,0.55713925]
[1753299823505,0.54372335,118500.0,118490.0,0.56557835]
[1753299823710,0.54372335,118500.0,118490.0,0.55713925]
[1753299824419,0.55216188,118500.0,118490.0,0.55713932]
[1753299824662,0.55216188,118500.0,118490.0,0.55713939]
[1753299825289,0.55216188,118500.0,118490.0,0.5402607]
[1753299825501,0.55514188,118500.0,118490.0,0.54026063]
[1753299825857,0.51840855,118500.0,118490.0,0.5402607]
[1753299826071,0.61736855,118500.0,118490.0,0.56233897]
[1753299826280,0.62580672,118500.0,118490.0,0.56233897]
[1753299826475,0.61736855,118500.0,118490.0,0.56233897]
[1753299827301,0.62580679,118500.0,118490.0,0.56233897]
[1753299827506,0.61736855,118500.0,118490.0,0.56233897]
[1753299828316,0.61736855,118500.0,118490.0,0.57753897]
[1753299828787,0.61736855,118500.0,118490.0,0.21450833]
[1753299828988,0.61736855,118500.0,118490.0,0.56233897]
[1753299829416,0.70945509,118500.0,118490.0,0.56233897]
[1753299829633,0.72003348,118500.0,118490.0,0.56233897]
[1753299829859,0.72003348,118500.0,118490.0,0.56233904]
[1753299830077,0.72003348,118500.0,118490.0,0.55389994]
[1753299830303,0.72003348,118500.0,118490.0,0.57077821]
[1753299830520,0.76027208,118500.0,118490.0,0.55085009]
[1753299830737,0.76027201,118500.0,118490.0,0.19410869]
[1753299830950,0.76027201,118500.0,118490.0,0.5655785]
[1753299831176,0.76027201,118500.0,118490.0,0.55713933]
[1753299831390,0.76027201,118500.0,118490.0,0.5655785]
[1753299831598,0.66818518,118500.0,118490.0,0.5740176]
[1753299832318,0.66818511,118500.0,118490.0,0.5740171]
[1753299832574,0.67662357,118500.0,118490.0,0.55713897]
[1753299832781,0.66818511,118500.0,118490.0,0.56557807]
[1753299833050,0.67662364,118500.0,118490.0,0.55713897]
[1753299833211,0.67662357,118500.0,118490.0,0.55713897]
[1753299833696,0.76110087,118500.0,118490.0,0.5486998]
[1753299833889,0.75266241,118500.0,118490.0,0.55713897]
[1753299834093,0.66818511,118500.0,118490.0,0.56557807]
[1753299834501,0.61950855,118500.0,118490.0,0.5761671]
[1753299834711,0.61950855,118500.0,118490.0,0.5792171]
[1753299835137,0.62794672,118500.0,118490.0,0.5792171]
[1753299835332,0.61950855,118500.0,118490.0,0.5792171]
[1753299835539,0.61736855,118500.0,118490.0,0.5792171]
[1753299836650,0.53245125,118500.0,118490.0,0.6101171]
[1753299836853,0.00049125,118500.0,118490.0,0.7420771]
[1753299837058,0.00049125,118500.0,118490.0,1.10510774]
[1753299837507,0.00049125,118500.0,118490.0,0.7420771]
[1753299838175,0.00049125,118500.0,118490.0,0.7440771]
[1753299838402,0.00049125,118500.0,118490.0,0.7430771]
[1753299838614,0.00049125,118500.0,118490.0,0.7420771]
[1753299838836,0.00049125,118500.0,118490.0,0.7440771]
[1753299839043,0.00049125,118500.0,118490.0,0.7460771]
[1753299840734,0.00049125,118500.0,118490.0,0.25108646]
[1753299840950,0.00049125,118500.0,118490.0,0.7308971]
[1753299841426,0.14306949,118500.0,118490.0,0.5526998]
[1753299841655,0.16791125,118500.0,118490.0,0.69313883]
[1753299841879,0.14973125,118500.0,118490.0,0.69313883]
[1753299842320,0.15816949,118500.0,118490.0,0.69313883]
[1753299842493,0.15816949,118500.0,118490.0,0.69113883]
[1753299842723,0.14973125,118500.0,118490.0,0.55913883]
[1753299842914,0.14973125,118500.0,118490.0,0.56013883]
[1753299842915,0.15816949,118500.0,118490.0,0.56013883]
[1753299843457,0.44260787,118500.0,118490.0,0.53482125]
[1753299843676,0.44260787,118500.0,118490.0,0.36403064]
[1753299843677,0.63482676,118500.0,118490.0,0.36403064]
[1753299843897,0.77638844,118500.0,118490.0,0.36403064]
[1753299844108,0.76794998,118500.0,118490.0,0.53382125]
[1753299844768,0.76794998,118500.0,118490.0,0.53182125]
[1753299845849,0.56972525,118500.0,118490.0,0.53182125]
[1753299846081,0.74694029,118500.0,118490.0,0.53182125]
[1753299846290,0.58660266,118500.0,118490.0,0.53182125]
[1753299846519,0.58660266,118500.0,118490.0,0.54026078]
[1753299846944,0.75537903,118500.0,118490.0,0.53182125]
[1753299847244,0.58660266,118500.0,118490.0,0.54870023]
[1753299847565,0.58660266,118500.0,118490.0,0.54026078]
[1753299847784,0.57816392,118500.0,118490.0,0.54870023]
[1753299847991,0.75537903,118500.0,118490.0,0.53182125]
[1753299848120,0.74694079,118500.0,118490.0,0.53182125]
[1753299848627,0.56972568,118500.0,118490.0,0.54026078]
[1753299848838,0.56972525,118500.0,118490.0,0.54870009]
[1753299849038,0.58660266,118500.0,118490.0,0.54026078]
[1753299849242,0.57816385,118500.0,118490.0,0.54870009]
[1753299849442,0.74694065,118500.0,118490.0,0.53182125]
[1753299849646,0.79509657,118500.0,118490.0,0.53182125]
[1753299851812,0.78665797,118500.0,118490.0,0.53182125]
[1753299852687,0.7782193,118500.0,118490.0,0.53182125]
[1753299853081,0.7782193,118500.0,118490.0,0.36303064]
[1753299853290,0.7782193,118500.0,118490.0,0.53182125]
[1753299855062,0.7782193,118500.0,118490.0,0.16879061]
[1753299855259,0.7782193,118500.0,118490.0,0.53182125]
[1753299857185,0.7782193,118500.0,118490.0,0.36303064]
[1753299862292,0.72162492,118500.0,118490.0,0.53182125]
[1753299862500,0.73001729,118500.0,118490.0,0.53182125]
[1753299863668,0.73001729,118500.0,118490.0,0.36303064]
[1753299864447,0.17726006,118470.0,118460.0,0.37444]
[1753299864663,0.32558132,118470.0,118460.0,0.87102064]
[1753299865043,0.32558132,118470.0,118460.0,0.73958064]
[1753299865254,0.36657942,118470.0,118460.0,0.39958064]
[1753299865472,0.36657942,118470.0,118460.0,0.36808064]
[1753299865676,0.36657942,118470.0,118460.0,0.38538064]
[1753299865843,0.36657942,118470.0,118460.0,0.38338064]
[1753299866060,0.35813868,118470.0,118460.0,0.38438064]
[1753299866262,0.44460598,118470.0,118460.0,0.36908064]
[1753299866507,0.47878598,118470.0,118460.0,0.001]
[1753299866724,0.47878598,118470.0,118460.0,0.36503064]
[1753299867284,0.47878598,118470.0,118460.0,0.36403064]
[1753299867575,0.47878598,118470.0,118460.0,0.532864]
[1753299868002,0.47878598,118470.0,118460.0,0.531864]
[1753299868308,0.42616736,118470.0,118460.0,0.54030566]
[1753299868524,0.39516736,118470.0,118460.0,0.54874725]
[1753299868741,0.39516736,118470.0,118460.0,0.531864]
[1753299869399,0.39516736,118470.0,118460.0,0.36303064]
[1753299869598,0.19415764,118460.0,118450.0,0.18022952]
[1753299869817,0.08780621,118460.0,118450.0,0.56225427]
[1753299870035,0.0962478,118460.0,118450.0,0.56225441]
[1753299870459,0.0962478,118460.0,118450.0,0.55381232]
[1753299870868,0.0962478,118460.0,118450.0,0.55386132]
[1753299871063,0.0962478,118460.0,118450.0,0.56330341]
[1753299871565,0.3495591,118460.0,118450.0,0.53797693]
[1753299871811,0.34111786,118460.0,118450.0,0.55192161]
[1753299872037,0.16384284,118460.0,118450.0,0.56880593]
[1753299872328,0.33428004,118460.0,118450.0,0.55192161]
[1753299872562,0.3326762,118460.0,118450.0,0.56036384]
[1753299872776,0.10334999,118460.0,118450.0,0.58018795]
[1753299873216,0.10334999,118460.0,118450.0,0.58018745]
[1753299873217,0.09291832,118460.0,118450.0,0.58018745]
[1753299873418,0.09291832,118460.0,118450.0,0.59518745]
[1753299873904,0.27863501,118460.0,118450.0,0.55397693]
[1753299874107,0.32964318,118460.0,118450.0,0.37012964]
[1753299874324,0.32964318,118460.0,118450.0,0.55586164]
[1753299874525,0.27019377,118460.0,118450.0,0.56430366]
[1753299874731,0.27019377,118460.0,118450.0,0.58030366]
[1753299874852,0.27019377,118460.0,118450.0,0.58874561]
[1753299875067,0.10136041,118460.0,118450.0,0.59718749]
[1753299875438,0.27019377,118460.0,118450.0,0.59718749]
[1753299875786,0.10136041,118460.0,118450.0,0.59718749]
[1753299875981,0.10980151,118460.0,118450.0,0.59718749]
[1753299876197,0.1182431,118460.0,118450.0,0.59718749]
[1753299878094,0.10980151,118460.0,118450.0,0.59718749]
[1753299878297,0.10135999,118460.0,118450.0,0.59718749]
[1753299878501,0.10135956,118460.0,118450.0,0.61368749]
[1753299878750,0.10980094,118460.0,118450.0,0.61368749]
[1753299879398,0.11824246,118460.0,118450.0,0.61368749]
[1753299879682,0.10980094,118460.0,118450.0,0.61368749]
[1753299882361,0.10135956,118460.0,118450.0,0.61368749]
[1753299882778,0.11824267,118460.0,118450.0,0.58030366]
[1753299883112,0.1182426,118460.0,118450.0,0.57274561]
[1753299883293,0.2157573,118460.0,118450.0,0.61218749]
[1753299883873,0.0844773,118460.0,118450.0,0.61218749]
[1753299884076,0.2157573,118460.0,118450.0,0.61218749]
[1753299884316,0.23263956,118460.0,118450.0,0.58686164]
[1753299884530,0.24108101,118460.0,118450.0,0.59530359]
[1753299884771,0.28375926,118460.0,118450.0,0.60374547]
[1753299885478,0.28375919,118460.0,118450.0,0.60374547]
[1753299885701,0.27531781,118460.0,118450.0,0.60374547]
[1753299885897,0.23263956,118460.0,118450.0,0.60374547]
[1753299887236,0.24108094,118460.0,118450.0,0.60374547]
[1753299888041,0.24952246,118460.0,118450.0,0.60374547]
[1753299888254,0.42679741,118460.0,118450.0,0.19144661]
[1753299888403,0.64431549,118460.0,118450.0,0.36507964]
[1753299888619,0.64727549,118460.0,118450.0,0.002049]
[1753299888827,0.81472451,118460.0,118450.0,0.002049]
[1753299889256,0.81472451,118460.0,118450.0,4.9e-05]
[1753299890105,0.81472451,118460.0,118450.0,0.36307964]
[1753299890328,0.81572451,118460.0,118450.0,0.36307964]
[1753299890978,0.75616279,118460.0,118450.0,0.36307964]
[1753299891181,0.62192279,118460.0,118450.0,0.53389725]
[1753299891386,0.75300279,118460.0,118450.0,0.53389725]
[1753299891798,0.75400279,118460.0,118450.0,0.53192725]
[1753299891964,0.75400279,118460.0,118450.0,0.36307964]
[1753299892180,0.75696279,118460.0,118450.0,0.36307964]
[1753299892335,0.84144009,118460.0,118450.0,0.36307964]
[1753299893952,0.75696279,118460.0,118450.0,0.36307964]
[1753299894155,0.75400279,118460.0,118450.0,0.53192725]
[1753299894771,0.74556134,118460.0,118450.0,0.53192725]
[1753299894986,0.74556134,118460.0,118450.0,0.36307964]
[1753299895916,0.74852134,118460.0,118450.0,0.36307964]
[1753299896762,0.83299864,118460.0,118450.0,0.36307964]